bitfinex/quotes_ETHUSD_20240701
["timestamp","ask_amount","ask_price","bid_price","bid_amount"]
[1719842426615,0.07207491,3468.6,3468.1,2.88336]
[1719842426814,0.07207491,3468.6,3467.5,3.0]
[1719842426815,0.07207491,3468.6,3467.9,2.88356]
[1719842427153,0.07207491,3468.6,3467.5,3.0]
[1719842427154,0.07207491,3468.6,3468.1,2.88339]
[1719842427693,0.07207491,3468.6,3467.3,2.88408]
[1719842428216,0.07207491,3468.6,3466.4,2.8309]
[1719842428217,2.88337,3468.2,3467.1,2.88422]
[1719842428446,2.8831,3468.5,3467.7,2.88367]
[1719842428949,8.6473,3468.7,3468.0,2.8835]
[1719842428950,0.07209181,3468.6,3468.0,2.8835]
[1719842429160,0.07209181,3468.6,3468.3,2.88324]
[1719842429459,8.6473,3468.7,3467.3,1.739]
[1719842429626,8.6473,3468.7,3468.6,2.883]
[1719842429829,8.6473,3468.7,3468.6,6.316]
[1719842430715,8.6473,3468.7,3467.8,2.88365]
[1719842431029,8.6473,3468.7,3468.6,2.883]
[1719842431731,8.6473,3468.7,3468.4,2.88312]
[1719842431933,8.6473,3468.7,3468.5,3.43307]
[1719842432117,8.6473,3468.7,3468.3,2.88324]
[1719842432118,8.6473,3468.7,3467.7,3.0]
[1719842432324,0.07208037,3468.6,3467.8,2.88366]
[1719842432518,6.041,3469.8,3468.1,2.88341]
[1719842432519,8.6473,3468.5,3468.1,2.88341]
[1719842432774,8.6473,3468.5,3468.3,2.8832]
[1719842432972,8.6473,3468.5,3468.4,5.76634]
[1719842433552,8.6473,3468.5,3468.4,2.88317]
[1719842433741,8.5973,3468.5,3468.4,2.88317]
[1719842433940,8.5973,3468.5,3468.4,8.903082]
[1719842434178,8.5973,3468.5,3468.4,6.892982]
[1719842434474,8.5973,3468.5,3468.4,4.009812]
[1719842434679,8.5973,3468.5,3467.6,2.5601]
[1719842434830,8.5973,3468.5,3467.9,2.88351]
[1719842435178,8.5973,3468.5,3468.1,2.88339]
[1719842435494,8.5973,3468.5,3467.8,2.88362]
[1719842435495,11.48045,3468.5,3467.8,2.88362]
[1719842435651,11.48045,3468.5,3468.0,2.88349]
[1719842435652,8.5973,3468.5,3468.0,2.88349]
[1719842435849,8.5973,3468.5,3468.1,2.88336]
[1719842436177,0.0720802,3468.4,3467.9,0.55]
[1719842436360,8.5973,3468.3,3467.6,2.88383]
[1719842436604,0.07208465,3468.2,3467.6,2.88381]
[1719842436885,8.5973,3468.1,3467.7,2.88374]
[1719842437061,8.5973,3468.1,3467.9,2.88358]
[1719842437263,8.5973,3468.1,3467.7,3.537847]
[1719842437467,8.5973,3468.1,3467.4,0.7739]
[1719842437667,8.5973,3468.1,3467.6,2.88377]
[1719842437896,8.5973,3468.1,3467.7,2.88375]
[1719842438049,8.5973,3468.1,3467.9,2.88358]
[1719842438253,8.5973,3468.1,3468.0,5.767]
[1719842438456,8.5973,3468.1,3468.0,7.1226]
[1719842439392,8.5973,3468.1,3468.0,10.0061]
[1719842439706,2.6506,3469.9,3469.1,2.88251]
[1719842439707,2.88195,3469.9,3469.1,2.88251]
[1719842439873,0.07205943,3469.8,3469.1,2.88251]
[1719842440211,8.71885943,3469.8,3469.1,2.88251]
[1719842440574,8.71885943,3469.8,3468.9,2.88272]
[1719842440575,0.07205943,3469.7,3468.9,2.88272]
[1719842440894,8.6468,3469.6,3469.0,0.55]
[1719842441395,7.18486784,3469.6,3469.5,5.7645]
[1719842441619,6.85002348,3469.6,3469.5,5.7645]
[1719842441752,6.85002348,3469.6,3469.5,9.3145]
[1719842441956,6.85002348,3469.6,3469.5,10.834184]
[1719842444090,6.85002348,3469.6,3469.5,0.55]
[1719842444290,6.85002348,3469.6,3469.5,2.88225]
[1719842444475,6.85002348,3469.6,3469.5,3.43225]
[1719842444679,6.85002348,3469.6,3469.5,6.3145]
[1719842444881,6.85002348,3469.6,3468.6,3.0]
[1719842445082,6.85002348,3469.6,3469.1,2.88252]
[1719842445394,6.85002348,3469.6,3469.4,2.88233]
[1719842445698,6.85002348,3469.6,3469.5,2.88225]
[1719842445853,6.85002348,3469.6,3469.5,5.7645]
[1719842446982,6.85002348,3469.6,3469.5,6.3145]
[1719842447692,6.85002348,3469.6,3469.5,6.94595]
[1719842447909,6.85002348,3469.6,3469.5,3.43225]
[1719842448294,6.85002348,3469.6,3469.3,2.8824]
[1719842448494,6.85002348,3469.6,3469.1,2.88256]
[1719842449131,6.85002348,3469.6,3468.9,2.88274]
[1719842449132,0.07205593,3469.5,3468.9,2.88274]
[1719842449282,2.95431593,3469.5,3468.7,2.88286]
[1719842449482,6.85002348,3469.4,3468.5,2.88306]
[1719842449681,2.88259,3469.1,3468.3,2.88319]
[1719842449918,6.85002348,3469.0,3468.6,2.883]
[1719842450237,6.85002348,3469.0,3468.5,2.88302]
[1719842450388,6.85002348,3469.0,3468.6,2.883]
[1719842450588,6.85002348,3469.0,3468.8,2.88282]
[1719842450792,6.85002348,3469.0,3468.9,5.7655]
[1719842451743,6.85002348,3469.0,3468.7,2.8829]
[1719842451887,6.85002348,3469.0,3468.7,2.88286]
[1719842452086,6.85002348,3469.0,3468.2,1.739]
[1719842452087,6.85002348,3469.0,3468.9,2.88275]
[1719842452351,6.85002348,3469.0,3468.9,5.7655]
[1719842452630,6.85002348,3469.0,3468.9,6.89205]
[1719842453355,6.85002348,3469.0,3468.9,20.3063]
[1719842453493,6.85002348,3469.0,3468.9,17.42355]
[1719842453691,6.85002348,3469.0,3468.9,20.3063]
[1719842454348,6.85002348,3469.0,3468.9,17.42355]
[1719842454926,6.85002348,3469.0,3468.9,20.3063]
[1719842455203,6.85002348,3469.0,3468.9,17.42355]
[1719842455602,6.85002348,3469.0,3468.9,20.3063]
[1719842455798,6.85002348,3469.0,3468.9,17.42355]
[1719842456154,6.85002348,3469.0,3468.9,20.3063]
[1719842456303,6.85002348,3469.0,3468.9,17.13395]
[1719842456498,6.85002348,3469.0,3468.9,20.0167]
[1719842457431,6.85002348,3469.0,3468.9,17.42355]
[1719842457673,6.85002348,3469.0,3468.9,20.3063]
[1719842458172,6.85002348,3469.0,3468.9,17.42355]
[1719842458342,6.85002348,3469.0,3468.9,20.3063]
[1719842458967,6.85002348,3469.0,3468.9,17.42355]
[1719842459280,6.85002348,3469.0,3468.9,20.3063]
[1719842460448,5.76002291,3469.0,3468.9,20.3063]
[1719842460759,4.35002291,3469.0,3468.9,14.63105]
[1719842461094,4.35002291,3469.0,3468.9,17.5138]
[1719842462316,1.41862291,3469.0,3468.9,23.14245]
[1719842462597,0.1212075,3470.5,3470.1,2.88171]
[1719842462751,0.1212075,3470.5,3470.2,0.55]
[1719842462950,0.1212075,3470.5,3470.2,3.43165]
[1719842463149,0.1212075,3470.5,3469.1,3.0]
[1719842463450,0.1212075,3470.5,3470.2,2.88166]
[1719842463664,0.1212075,3470.5,3469.6,2.88212]
[1719842463865,0.19325242,3470.5,3469.7,3.55]
[1719842464065,2.88191,3470.0,3469.2,2.88243]
[1719842464276,11.59927054,3469.9,3469.0,4.63402]
[1719842464462,11.59927054,3469.9,3468.9,2.88274]
[1719842464463,2.88222,3469.6,3468.9,2.88274]
[1719842464778,8.6453,3469.5,3469.2,2.88243]
[1719842464978,8.6453,3469.5,3469.4,5.76468]
[1719842465591,8.6453,3469.5,3469.4,8.64702]
[1719842465751,8.6453,3469.5,3469.4,8.76468]
[1719842465953,8.6453,3469.5,3469.4,10.229385]
[1719842466164,8.6453,3469.5,3469.4,12.518385]
[1719842466902,8.6453,3469.5,3469.4,0.55]
[1719842467075,8.6453,3469.5,3469.3,0.55]
[1719842467464,8.6453,3469.5,3469.4,2.88234]
[1719842467693,8.6453,3469.5,3468.8,3.0]
[1719842468004,8.6453,3469.5,3469.1,2.88256]
[1719842468157,8.6453,3469.5,3468.8,3.0]
[1719842468158,8.6453,3469.5,3469.4,2.88234]
[1719842468572,8.6453,3469.5,3469.4,6.34692841]
[1719842468791,8.6453,3469.5,3469.4,9.22926841]
[1719842468990,8.6453,3469.5,3469.4,6.34692841]
[1719842469199,8.6453,3469.5,3469.4,6.89692841]
[1719842469928,8.6453,3469.5,3469.0,2.88266]
[1719842470147,8.6453,3469.5,3468.9,2.88275]
[1719842470296,2.95441496,3469.4,3468.5,2.88305]
[1719842470634,2.88271,3469.0,3468.1,2.88339]
[1719842470805,2.88271,3469.0,3467.0,3.4870874]
[1719842470806,2.88325,3468.3,3467.5,2.88385]
[1719842470999,0.07208853,3468.2,3467.3,2.88406]
[1719842471196,0.07208853,3468.2,3467.6,2.88378]
[1719842471412,0.07209176,3468.4,3467.6,0.64021675]
[1719842471699,0.07209176,3468.4,3467.2,0.05766977]
[1719842471899,0.07208688,3468.5,3467.8,2.88361]
[1719842472094,2.95524688,3468.5,3467.6,2.88378]
[1719842472339,2.95524688,3468.5,3467.2,2.88416]
[1719842472340,0.07208688,3468.5,3467.2,2.88416]
[1719842472493,2.88342,3468.1,3467.4,2.88399]
[1719842472694,2.95548661,3468.2,3467.4,0.576815]
[1719842472927,2.88317,3468.4,3467.5,2.88386]
[1719842473202,2.95514147,3468.6,3467.6,0.05767318]
[1719842473401,5.75901,3468.8,3468.0,2.88346]
[1719842473592,5.75901,3468.8,3467.6,2.88383]
[1719842473593,0.07208173,3468.7,3467.6,2.88383]
[1719842473815,2.8831,3468.5,3467.1,3.0]
[1719842473992,2.8831,3468.5,3467.2,5.665]
[1719842473993,0.07208663,3468.5,3467.2,5.665]
[1719842474193,0.07208663,3468.5,3467.6,2.88375]
[1719842474390,0.07208663,3468.5,3467.2,0.926]
[1719842474637,0.07208663,3468.5,3466.9,3.26]
[1719842474810,2.8837,3467.8,3466.5,2.88474]
[1719842475007,2.88346,3468.1,3466.7,2.88456]
[1719842475008,2.88393,3467.5,3466.7,2.88456]
[1719842475196,2.88346,3468.1,3466.5,2.88474]
[1719842475197,2.95610665,3467.4,3466.5,2.88474]
[1719842475395,2.88418,3467.2,3466.1,4.0401]
[1719842475609,0.07211374,3467.1,3466.7,2.88458]
[1719842475816,2.9035,3467.3,3466.7,2.88458]
[1719842476005,2.9035,3467.3,3466.5,0.05769095]
[1719842476006,2.9035,3467.8,3467.2,2.88412]
[1719842476221,2.88389,3467.6,3466.7,0.0576815]
[1719842476422,2.95602667,3467.5,3466.4,2.88481]
[1719842476603,2.88401,3467.4,3466.4,3.3592036]
[1719842476799,0.07211375,3467.3,3466.5,2.88475]
[1719842477119,0.07211375,3467.7,3466.6,0.057691]
[1719842477319,5.71935954,3468.3,3466.9,2.88441]
[1719842477646,0.07208869,3468.2,3467.6,2.88376]
[1719842477942,0.07208869,3468.2,3467.4,2.88393]
[1719842478112,0.07208869,3468.2,3467.8,2.8836]
[1719842478316,0.07208869,3468.2,3467.5,0.838393]
[1719842478500,0.07208869,3468.2,3467.6,2.88377]
[1719842478840,2.88273,3469.0,3467.5,0.55]
[1719842478841,2.7537,3469.3,3468.9,2.8827]
[1719842479041,5.64657659,3471.3,3468.9,2.8827]
[1719842479042,2.7537,3469.9,3469.8,2.88201]
[1719842479254,2.7537,3469.9,3469.0,0.05764702]
[1719842479255,2.7537,3469.9,3469.2,2.8825]
[1719842479403,2.7537,3469.9,3469.0,0.55]
[1719842479607,2.7537,3469.9,3469.2,2.88245]
[1719842480028,5.63564,3469.9,3469.2,2.88245]
[1719842480234,6.487375,3469.9,3468.7,3.43287]
[1719842480434,6.487375,3469.9,3468.8,0.05765026]
[1719842480435,2.7537,3469.9,3468.8,0.05765026]
[1719842480740,2.88225,3469.6,3468.9,0.55]
[1719842480915,2.8821,3469.7,3468.9,0.55]
[1719842481117,2.88228,3469.5,3468.8,3.43283]
[1719842481423,2.88228,3469.5,3468.7,3.0]
[1719842481424,2.88236,3469.4,3468.7,3.0]
[1719842481612,2.8824,3469.4,3468.5,2.88303]
[1719842481835,2.88276,3468.9,3468.1,2.88335]
[1719842482031,2.88259,3469.1,3468.2,0.55]
[1719842482032,2.88284,3468.8,3468.2,0.55]
[1719842482230,2.7304,3469.0,3468.6,2.883]
[1719842482527,2.7304,3469.0,3468.4,2.88311]
[1719842482846,2.88285,3468.8,3468.1,2.88341]
[1719842483050,0.561325,3468.8,3467.7,2.88369]
[1719842483363,2.7304,3469.0,3467.3,2.88401]
[1719842483364,2.88334,3468.2,3467.3,2.88401]
[1719842483531,2.88251,3469.2,3466.4,3.3285936]
[1719842483532,2.88367,3467.9,3466.4,3.3285936]
[1719842483735,2.88367,3467.8,3466.8,2.88446]
[1719842483942,2.88367,3467.8,3466.9,2.88441]
[1719842484135,5.75622,3468.0,3467.2,2.88416]
[1719842484318,2.8727,3468.0,3467.0,2.88428]
[1719842484522,2.88372,3467.8,3467.0,2.88428]
[1719842484723,2.88389,3467.6,3466.9,0.288441]
[1719842484951,2.88372,3467.8,3466.9,0.288441]
[1719842484952,2.88372,3467.8,3467.0,5.76859]
[1719842485152,5.75621,3468.0,3467.0,3.4899731]
[1719842485580,5.75621,3468.0,3467.2,2.88417]
[1719842485581,2.8836,3467.9,3467.2,2.88417]
[1719842486304,5.75621,3468.0,3467.2,2.88417]
[1719842486446,2.88364,3467.9,3467.2,2.88417]
[1719842486644,5.75621,3468.0,3467.2,2.88417]
[1719842486876,2.8727,3468.0,3467.2,0.66626241]
[1719842487048,2.8727,3468.0,3467.5,2.88384]
[1719842487576,2.8727,3468.0,3467.6,2.88383]
[1719842487793,2.8727,3468.0,3467.4,2.88399]
[1719842488145,2.8727,3468.0,3466.9,0.288441]
[1719842488146,5.75628,3468.0,3467.3,2.88407]
[1719842488543,2.88372,3467.8,3466.9,0.288441]
[1719842488770,2.88372,3467.8,3467.1,2.88424]
[1719842489374,2.8727,3468.0,3466.7,2.88458]
[1719842489641,2.88385,3467.6,3466.7,2.88458]
[1719842489866,2.88385,3467.6,3466.5,2.88473]
[1719842489867,2.8727,3468.0,3466.5,2.88473]
[1719842490082,2.88311,3468.5,3465.3,3.0]
[1719842490083,2.88448,3466.9,3465.3,3.0]
[1719842490340,2.7433,3467.0,3466.2,2.885]
[1719842490578,2.7433,3467.0,3466.1,0.05769698]
[1719842490776,2.7326,3467.6,3466.3,2.88486]
[1719842490936,2.88438,3467.0,3466.3,2.88491]
[1719842491137,2.88426,3467.1,3466.4,2.88478]
[1719842491341,3.0,3467.5,3465.3,5.88574]
[1719842491342,3.0,3467.5,3466.0,2.88516]
[1719842491572,3.0,3467.5,3465.8,2.88527]
[1719842491573,2.88464,3466.7,3465.8,2.88527]
[1719842491805,2.88422,3467.2,3465.9,0.05770197]
[1719842491973,2.88422,3467.2,3466.4,2.88478]
[1719842492144,3.0,3467.5,3466.4,3.173258]
[1719842492346,2.88454,3466.8,3465.8,2.88532]
[1719842492541,3.0,3467.5,3465.6,2.88548]
[1719842492542,2.8847,3466.6,3465.6,2.88548]
[1719842492757,2.8847,3466.6,3465.9,2.88519]
[1719842492983,2.8845,3466.8,3466.1,2.88507]
[1719842493197,2.88421,3467.2,3466.0,0.0577019]
[1719842493499,2.9192,3467.4,3466.4,2.88482]
[1719842493789,2.88417,3467.2,3466.5,2.88471]
[1719842494089,5.80326,3467.4,3466.7,2.88452]
[1719842494277,2.8841,3467.3,3466.5,2.88474]
[1719842494477,2.88426,3467.1,3466.3,2.88489]
[1719842494682,2.9192,3467.4,3465.9,2.88522]
[1719842494892,2.88455,3466.8,3466.0,3.43511]
[1719842495053,2.88435,3467.0,3466.2,2.885]
[1719842495254,5.80321,3467.4,3466.4,2.8848]
[1719842495497,2.9192,3467.4,3466.4,2.8848]
[1719842495794,2.88434,3467.0,3466.2,2.88494]
[1719842495982,2.88455,3466.8,3466.0,0.55]
[1719842496153,2.88456,3466.8,3466.1,2.88502]
[1719842496486,2.88456,3466.8,3465.5,3.0]
[1719842496487,2.88467,3466.6,3465.9,2.88525]
[1719842496851,2.88456,3466.8,3466.0,2.88516]
[1719842497054,2.8846,3466.7,3466.1,0.577049]
[1719842497254,2.88467,3466.6,3465.6,2.88544]
[1719842497494,2.88501,3466.2,3465.6,2.88544]
[1719842497786,2.88501,3466.2,3465.4,2.88564]
[1719842498006,2.8851,3466.1,3465.4,2.88564]
[1719842498158,2.88519,3466.0,3465.3,2.88569]
[1719842498355,2.88519,3466.0,3465.1,2.88588]
[1719842498356,8.49097,3466.2,3465.4,3.24260852]
[1719842498583,2.7209,3466.2,3465.4,3.24260852]
[1719842498788,2.7209,3466.2,3465.6,2.88549]
[1719842499089,2.7209,3466.2,3465.4,3.24260852]
[1719842499090,2.7209,3466.2,3465.4,0.35694852]
[1719842499267,5.6059,3466.2,3465.5,2.88551]
[1719842499475,2.88514,3466.1,3465.3,2.88573]
[1719842499675,2.7209,3466.2,3465.5,2.88558]
[1719842499869,2.88486,3466.4,3465.6,2.88546]
[1719842500268,2.88468,3466.6,3465.6,2.88546]
[1719842500632,6.08033,3466.8,3465.7,0.288546]
[1719842500633,2.88492,3466.3,3465.7,0.288546]
[1719842500786,2.88476,3466.5,3465.7,0.288546]
[1719842500787,2.885,3466.2,3465.7,0.288546]
[1719842501184,2.88508,3466.1,3465.7,0.288546]
[1719842501417,2.8849,3466.4,3465.2,2.8858]
[1719842501626,2.88523,3466.0,3465.3,2.88574]
[1719842501931,2.88526,3465.9,3465.2,2.8858]
[1719842502091,2.88546,3465.7,3465.0,2.88599]
[1719842502286,2.88526,3465.9,3465.1,2.88591]
[1719842502501,2.88526,3465.9,3465.1,2.88586]
[1719842502827,2.88555,3465.6,3464.8,2.88615]
[1719842502997,3.1457,3466.2,3464.4,2.88643]
[1719842503209,3.1457,3466.2,3465.0,2.88595]
[1719842503388,2.8854,3465.8,3465.2,2.88582]
[1719842503984,2.8852,3466.0,3465.0,3.463159]
[1719842503985,2.8852,3466.0,3465.0,0.577209]
[1719842504188,2.88509,3466.1,3465.4,2.88561]
[1719842504686,2.88526,3465.9,3465.2,2.88575]
[1719842505126,2.88509,3466.1,3465.3,2.88575]
[1719842505323,2.88517,3466.0,3465.4,2.88566]
[1719842505534,2.8853,3465.9,3465.3,0.6348869]
[1719842505739,3.1457,3466.2,3465.6,2.88542]
[1719842506092,5.92509,3467.3,3465.0,5.198199]
[1719842506093,2.9806,3466.7,3465.0,5.198199]
[1719842506428,2.88473,3466.6,3465.9,2.88517]
[1719842506725,2.9806,3466.7,3466.0,2.88516]
[1719842506889,2.9806,3466.7,3466.1,2.88508]
[1719842507089,2.88456,3466.8,3466.1,2.88508]
[1719842507090,2.88436,3467.0,3466.2,2.88494]
[1719842507424,3.0246,3467.2,3466.3,2.8849]
[1719842507592,5.90878,3467.2,3466.4,2.88482]
[1719842507787,2.88426,3467.1,3466.4,2.88482]
[1719842508018,3.0246,3467.2,3466.5,2.88472]
[1719842508384,3.0246,3467.2,3466.6,2.88464]
[1719842508600,3.0246,3467.2,3466.8,2.88445]
[1719842508829,3.0246,3467.2,3466.6,2.88464]
[1719842508993,3.0246,3467.2,3466.5,0.576954]
[1719842509327,3.0246,3467.2,3466.2,2.88499]
[1719842509328,2.88447,3466.9,3466.2,2.88494]
[1719842509828,2.88447,3466.9,3466.1,2.88507]
[1719842509986,2.88425,3467.1,3465.4,3.0]
[1719842510186,3.0246,3467.2,3466.7,2.88452]
[1719842510391,3.0246,3467.2,3465.8,0.60769599]
[1719842510392,5.96309,3467.7,3466.8,2.88449]
[1719842510629,5.96309,3467.7,3466.2,0.05769378]
[1719842510630,3.0793,3467.7,3467.1,2.88418]
[1719842510841,3.0793,3467.7,3466.3,2.285]
[1719842511135,2.88381,3467.7,3466.9,2.88436]
[1719842511301,2.88381,3467.7,3466.7,2.88455]
[1719842511302,2.88381,3467.7,3467.0,2.88433]
[1719842511637,2.88406,3467.4,3466.7,2.88455]
[1719842511803,2.88427,3467.1,3466.3,2.88486]
[1719842512440,2.88427,3467.1,3465.4,1.735]
[1719842512441,3.0532,3467.4,3466.1,2.88503]
[1719842512594,2.88448,3466.9,3466.1,2.88503]
[1719842512789,2.88475,3466.5,3465.7,2.88541]
[1719842512990,2.88475,3466.5,3465.5,2.88556]
[1719842512991,2.954,3466.9,3465.5,2.88558]
[1719842513196,2.88477,3466.5,3465.5,2.88558]
[1719842513635,2.954,3466.9,3465.0,3.577209]
[1719842513636,2.88467,3466.6,3465.8,2.88532]
[1719842513937,2.88483,3466.4,3465.6,2.88544]
[1719842514112,2.88483,3466.4,3465.7,2.88541]
[1719842514512,2.88467,3466.6,3465.7,2.88541]
[1719842514513,2.88492,3466.3,3465.7,2.88541]
[1719842514836,2.88509,3466.1,3465.4,2.88565]
[1719842515043,2.88509,3466.1,3465.4,3.462797]
[1719842515538,5.995,3466.9,3465.4,3.462797]
[1719842515539,2.88478,3466.5,3465.7,2.88535]
[1719842515739,2.88507,3466.2,3465.5,2.88552]
[1719842516050,2.88486,3466.4,3465.0,3.577209]
[1719842516253,2.88485,3466.4,3465.8,2.88528]
[1719842516563,2.88485,3466.4,3465.7,2.88541]
[1719842516704,2.954,3466.9,3465.9,2.88519]
[1719842516705,2.88467,3466.6,3465.9,2.88519]
[1719842517127,5.83842,3466.9,3466.1,2.88501]
[1719842517341,2.8845,3466.8,3466.1,2.88501]
[1719842517511,2.88458,3466.7,3466.1,2.88501]
[1719842517902,2.954,3466.9,3466.3,2.88491]
[1719842518352,2.954,3466.9,3466.1,2.88505]
[1719842518508,3.0,3467.2,3466.5,2.88475]
[1719842518509,2.88417,3467.2,3466.5,2.88475]
[1719842518849,2.88417,3467.2,3466.3,2.88491]
[1719842518850,2.88417,3467.2,3466.4,2.88481]
[1719842519018,2.88417,3467.2,3466.5,2.88474]
[1719842519944,6.11431,3467.9,3467.0,2.88425]
[1719842520145,6.11431,3467.9,3466.8,2.88444]
[1719842520146,0.49949096,3467.8,3466.8,2.88444]
[1719842520380,2.88397,3467.5,3466.8,2.88444]
[1719842520552,2.884,3467.4,3466.7,2.88452]
[1719842520887,2.88397,3467.5,3466.4,2.8848]
[1719842520888,2.88395,3467.5,3466.4,2.8848]
[1719842521178,2.88392,3467.5,3466.9,2.8844]
[1719842521684,2.88407,3467.4,3465.9,1.735]
[1719842521862,2.8843,3467.1,3466.1,2.88505]
[1719842522062,6.2717,3467.9,3466.4,2.88478]
[1719842522063,2.88423,3467.2,3466.4,2.88478]
[1719842522252,3.041,3467.8,3466.1,2.88505]
[1719842522451,2.88467,3466.6,3466.0,2.88516]
[1719842522658,3.0501,3466.9,3465.8,2.88527]
[1719842522659,2.88484,3466.4,3465.8,2.88527]
[1719842522860,2.88497,3466.3,3465.4,2.88563]
[1719842523084,2.88497,3466.3,3465.6,2.8855]
[1719842523269,5.76924,3466.7,3465.8,2.88528]
[1719842523456,2.8846,3466.7,3465.9,2.88519]
[1719842523663,2.88484,3466.4,3465.7,2.88536]
[1719842523859,2.88483,3466.5,3465.7,2.88536]
[1719842524258,2.88497,3466.3,3465.7,2.88536]
[1719842525163,2.88485,3466.4,3465.7,2.88536]
[1719842525485,2.88518,3466.0,3465.3,2.88569]
[1719842525698,2.88525,3465.9,3465.3,2.88569]
[1719842526253,2.88487,3466.4,3465.5,2.88558]
[1719842526487,6.3181,3466.9,3465.5,2.88558]
[1719842526488,2.88492,3466.3,3465.7,2.88541]
[1719842526706,2.88459,3466.7,3466.0,2.88516]
[1719842526852,2.88459,3466.7,3465.0,0.577209]
[1719842526853,2.88468,3466.6,3465.8,2.88533]
[1719842527097,0.893469,3466.7,3465.5,2.88551]
[1719842527424,3.0,3467.0,3466.3,2.88486]
[1719842527721,2.88433,3467.0,3466.3,2.88486]
[1719842528023,2.88424,3467.2,3466.3,2.88486]
[1719842528249,5.73321,3468.4,3465.8,1.735]
[1719842528250,2.9396,3468.0,3465.8,1.735]
[1719842528441,2.88422,3467.2,3466.5,2.88472]
[1719842528587,2.88422,3467.2,3466.5,3.461682]
[1719842528917,2.884,3467.4,3466.5,3.461672]
[1719842529127,2.9396,3468.0,3466.5,0.576962]
[1719842529128,2.88362,3467.9,3466.5,0.576962]
[1719842529420,2.9396,3468.0,3466.3,0.05769266]
[1719842529421,2.88384,3467.6,3467.0,2.88429]
[1719842529654,2.88393,3467.5,3466.8,2.88446]
[1719842529787,2.9396,3468.0,3466.1,3.0]
[1719842529788,2.88425,3467.1,3466.1,3.0]
[1719842529985,2.9396,3468.0,3465.9,3.55]
[1719842530196,2.9396,3468.0,3466.9,2.88441]
[1719842530197,2.88388,3467.6,3466.9,2.88441]
[1719842530508,0.6267183,3467.6,3465.9,6.4352]
[1719842530685,0.49953988,3467.5,3466.4,2.88478]
[1719842531005,2.88439,3467.0,3466.4,2.88478]
[1719842531204,3.0,3467.8,3465.9,3.55]
[1719842531383,3.041,3467.6,3465.9,3.55]
[1719842531584,2.88458,3466.7,3465.9,2.88523]
[1719842531817,2.88443,3466.9,3465.9,0.288523]
[1719842531986,2.88443,3466.9,3466.3,2.88489]
[1719842532883,8.90182,3467.5,3466.6,2.88462]
[1719842532884,2.88412,3467.3,3466.6,2.88462]
[1719842533118,2.88417,3467.2,3466.6,2.88462]
[1719842533416,2.88441,3467.0,3466.2,2.88496]
[1719842533583,0.288441,3466.9,3466.2,2.88496]
[1719842533779,2.8844,3467.0,3466.2,2.88496]
[1719842534009,2.88459,3466.7,3466.0,2.88513]
[1719842534215,2.88489,3466.4,3465.4,3.0]
[1719842534436,2.88489,3466.4,3465.6,2.88544]
[1719842534592,2.88449,3466.9,3465.6,2.88544]
[1719842534593,2.88497,3466.3,3465.7,3.51201154]
[1719842534988,3.0,3467.5,3465.7,0.51201154]
[1719842535185,1.155158,3470.2,3465.7,0.51201154]
[1719842535186,2.9685,3468.1,3467.1,2.88417]
[1719842535386,2.9685,3468.1,3466.5,3.0576827]
[1719842535387,0.49949766,3468.0,3466.5,3.0576827]
[1719842535737,2.9685,3468.1,3467.1,2.88419]
[1719842535738,5.85193,3468.1,3467.1,2.88419]
[1719842535937,3.201,3468.6,3467.0,0.05768518]
[1719842536101,3.201,3468.6,3466.8,3.2368]
[1719842536102,2.88325,3468.3,3467.4,2.88394]
[1719842536302,0.49943213,3468.2,3467.7,2.88374]
[1719842536624,3.201,3468.6,3467.7,2.88374]
[1719842536625,6.084,3468.6,3467.7,2.88374]
[1719842536824,6.084,3468.6,3467.5,2.88391]
[1719842536825,3.201,3468.6,3467.8,2.88361]
[1719842537067,3.201,3468.6,3467.3,2.88406]
[1719842537319,2.8831,3468.5,3467.6,2.88382]
[1719842537521,3.779884,3468.4,3467.6,2.88382]
[1719842538392,2.88336,3468.2,3467.4,2.88398]
[1719842538613,3.779884,3468.4,3466.9,2.88436]
[1719842538614,3.937704,3468.4,3466.9,2.88436]
[1719842538817,2.88389,3467.6,3466.7,2.88457]
[1719842539094,2.88392,3467.5,3466.7,2.88455]
[1719842539626,2.884,3467.4,3466.7,2.88455]
[1719842540119,3.0123,3467.6,3467.0,2.88427]
[1719842540585,2.8835,3468.0,3467.3,2.88404]
[1719842540924,2.88359,3467.9,3467.3,2.88404]
[1719842541120,2.88359,3467.9,3467.1,2.88423]
[1719842541624,2.88367,3467.8,3467.2,2.88415]
[1719842541825,2.88376,3467.7,3467.0,2.88428]
[1719842542404,2.88376,3467.7,3467.1,2.88425]
[1719842544232,0.28815738,3467.7,3466.4,2.88477]
[1719842544407,2.88418,3467.2,3466.6,2.88466]
[1719842544621,6.041,3468.0,3466.5,2.88467]
[1719842544958,6.041,3468.0,3466.4,2.88477]
[1719842544959,2.8843,3467.1,3466.4,2.88477]
[1719842545144,2.8843,3467.1,3466.5,2.88473]
[1719842545460,2.88446,3466.9,3466.0,3.0]
[1719842545633,2.88446,3466.9,3466.1,2.88503]
[1719842545634,2.8845,3466.8,3466.1,2.88503]
[1719842546056,2.88458,3466.7,3466.1,2.88503]
[1719842546227,3.1117,3467.1,3465.5,2.88555]
[1719842546426,3.1117,3467.1,3465.7,2.88541]
[1719842546427,2.88495,3466.3,3465.7,2.88541]
[1719842546630,2.8848,3466.5,3465.8,2.88533]
[1719842546845,3.17328,3466.5,3465.8,2.88533]